fUSD/lending_fUSD_20240104
["ID","MTS","AMOUNT","RATE_DAILY","PERIOD"]
[310236249,1704406289319,-668.71,0.00038904,2]
[310236250,1704406289329,-529.99,0.00038904,2]
[310236251,1704406289342,-533.64,0.00038904,2]
[310236252,1704406289352,-586.88,0.00038904,2]
[310236253,1704406289363,-970.98,0.00038904,2]
[310236254,1704406289373,-151.0,0.00038904,7]
[310236255,1704406289382,-100000.0,0.00039,9]
[310236256,1704406289392,-196.52296058,0.00039,4]
[310236257,1704406289402,-12775.69506172,0.00039,4]
[310236258,1704406289411,-3667.39888793,0.00039,2]
[310236259,1704406289421,-973.27585947,0.00039,4]
[310236260,1704406289431,-75999.0,0.00039,3]
[310236261,1704406289440,-550.0,0.00039,3]
[310236262,1704406289449,-500.0,0.00039,120]
[310236263,1704406289459,-1000.0,0.00039,2]
[310236264,1704406289469,-931.0,0.00039083,20]
[310236265,1704406289480,-368.0,0.00039083,20]
[310236266,1704406289491,-150.0,0.00039163,2]
[310236267,1704406289501,-668.83557565,0.00039178,2]
[310236268,1704406289513,-530.18,0.00039178,2]
[310236269,1704406289536,-627.2,0.00039178,2]
[310236270,1704406289550,-533.66,0.00039178,2]
[310236271,1704406289560,-587.06,0.00039178,2]
[310236272,1704406289570,-971.063084,0.00039178,2]
[310236273,1704406289580,-771.906904,0.00039178,14]
[310236274,1704406289591,-395.11,0.00039178,2]
[310236275,1704406289601,-1699.53,0.00039178,2]
[310236276,1704406289613,-150.0,0.00039209,2]
[310236277,1704406289622,-1000.0,0.0003926,2]
[310236278,1704406289632,-150.0,0.00039366,2]
[310236279,1704406289641,-931.0,0.00039466,20]
[310236280,1704406289650,-368.0,0.00039466,20]
[310236281,1704406289659,-167.0,0.000395,2]
[310236282,1704406289669,-2562.05032282,0.000395,4]
[310236283,1704406289677,-200.0,0.00039564,2]
[310236284,1704406289687,-200.0,0.00039564,2]
[310236285,1704406289696,-200.0,0.00039566,2]
[310236286,1704406289705,-150.0,0.00039566,2]
[310236287,1704406289714,-935.83394857,0.00039568,2]
[310236288,1704406289724,-935.83394857,0.00039569,2]
[310236289,1704406289733,-5266.57411455,0.00039577,2]
[310236290,1704406289743,-200.0,0.00039579,2]
[310236291,1704406289752,-200.0,0.00039584,2]
[310236292,1704406289762,-627.2,0.00039589,2]
[310236293,1704406289771,-5266.57411455,0.00039595,2]
[310236294,1704406289781,-5266.57411455,0.00039596,2]
[310236295,1704406289790,-935.83394857,0.00039596,2]
[310236296,1704406289799,-935.83394857,0.00039597,2]
[310236297,1704406289810,-5266.57411455,0.00039599,2]
[310236298,1704406289820,-153.84,0.0003965,2]
[310236299,1704406289830,-152.0,0.0003966,4]
[310236300,1704406289841,-777.55,0.00039671,90]
[310236301,1704406289851,-565.56,0.00039671,90]
[310236302,1704406289862,-17500.0,0.000397,22]
[310236303,1704406289874,-170.0,0.00039726,2]
[310236304,1704406289883,-200.0,0.00039726,4]
[310236305,1704406289893,-200.0,0.00039726,4]
[310236306,1704406289904,-200.0,0.00039726,4]
[310236307,1704406289914,-200.0,0.00039726,4]
[310236308,1704406289923,-200.0,0.00039726,4]
[310236309,1704406289934,-200.0,0.00039726,4]
[310236310,1704406289944,-200.0,0.00039726,4]
[310236311,1704406289953,-200.0,0.00039726,4]
[310236312,1704406289963,-200.0,0.00039726,4]
[310236313,1704406289974,-200.0,0.00039726,4]
[310236314,1704406289984,-200.0,0.00039726,4]
[310236315,1704406289993,-200.0,0.00039726,4]
[310236316,1704406290002,-200.0,0.00039726,4]
[310236317,1704406290012,-200.0,0.00039726,4]
[310236318,1704406290023,-200.0,0.00039726,4]
[310236319,1704406290032,-200.0,0.00039726,4]
[310236320,1704406290042,-200.0,0.00039726,4]
[310236321,1704406290052,-200.0,0.00039726,4]
[310236322,1704406290062,-200.0,0.00039726,4]
[310236323,1704406290073,-200.0,0.00039726,4]
[310236324,1704406290082,-200.0,0.00039726,4]
[310236325,1704406290093,-200.0,0.00039726,4]
[310236326,1704406290102,-307.319213,0.00039726,4]
[310236327,1704406290111,-295.0,0.0003977,60]
[310236328,1704406290121,-295.0,0.0003978,60]
[310236329,1704406290131,-295.0,0.0003979,60]
[310236330,1704406290141,-206.0,0.0003979,60]
[310236331,1704406290152,-1399.91990463,0.000398,4]
[310236332,1704406290164,-1876.16,0.00039828,2]
[310236333,1704406290173,-1159.09726,0.0003983,2]
[310236334,1704406290183,-295.0,0.0003987,60]
[310236335,1704406290192,-295.0,0.0003988,60]
[310236336,1704406290202,-295.0,0.0003989,60]
[310236337,1704406290213,-777.55,0.0003989,92]
[310236338,1704406290222,-565.56,0.0003989,91]
[310236339,1704406290232,-350.00051098,0.000399,4]
[310236340,1704406290241,-295.0,0.0003999,60]
[310236341,1704406290251,-2588.0,0.0003999,2]
[310236342,1704406290261,-152.40859416,0.00039997,2]
[310236343,1704406290271,-2599.99999901,0.00039998,30]
[310236344,1704406290282,-3285.96465314,0.00039999,2]
[310236345,1704406290291,-150.01,0.00039999,2]
[310236346,1704406290302,-150.0,0.00039999,2]
[310236347,1704406290313,-150.0,0.00039999,2]
[310236348,1704406290324,-100000.0,0.0004,10]
[310236349,1704406290335,-1353.53136251,0.0004,15]
[310236350,1704406290345,-164.0,0.0004,2]
[310236351,1704406290355,-164.0,0.0004,2]
[310236352,1704406290365,-31736.05261973,0.0004,3]
[310236353,1704406290375,-9234.66492028,0.0004,2]
[310236354,1704406290385,-470.00343426,0.0004,4]
[310236355,1704406290395,-3837.63099079,0.0004,4]
[310236356,1704406290405,-477.82021196,0.0004,2]
[310236357,1704406290415,-129003.34418512,0.0004,2]
[310236358,1704406290425,-2000.0,0.0004,14]
[310236359,1704406290435,-2000.0,0.0004,14]
[310236360,1704406290444,-1067.77134559,0.0004,10]
[310236361,1704406290455,-118550.52567891,0.0004,10]
[310236362,1704406290464,-1000.0,0.0004,20]
[310236363,1704406290474,-2821.44586526,0.0004,5]
[310236364,1704406290484,-26867.72456352,0.0004,4]
[310236365,1704406290494,-1709.88144762,0.0004,4]
[310236366,1704406290503,-7813.90622663,0.0004,4]
[310236367,1704406290513,-1079.89343852,0.0004,4]
[310236368,1704406290523,-2525.0,0.0004,14]
[310236369,1704406290534,-5330.23220701,0.0004,2]
[310236370,1704406290544,-1499.13114621,0.0004,2]
[310236371,1704406290718,-200.02042583,0.0004,2]
[310236372,1704406290728,-2000.0,0.0004,2]
[310236373,1704406290738,-1138.20638808,0.0004,2]
[310236374,1704406290748,-79353.0,0.0004,5]
[310236375,1704406290759,-20000.0,0.0004,8]
[310236376,1704406290770,-20000.0,0.0004,10]
[310236377,1704406290780,-3102.99300277,0.0004,15]
[310236378,1704406290789,-8624.12035198,0.0004,3]
[310236379,1704406290798,-101767.09174506,0.0004,2]
[310236380,1704406290807,-10325.68871328,0.0004,15]
[310236381,1704406290817,-33287.39535157,0.0004,2]
[310236382,1704406290826,-2074.04765082,0.0004,4]
[310236383,1704406290836,-218993.23345931,0.0004,2]
[310236384,1704406290845,-1700.0,0.0004,8]
[310236385,1704406290855,-157.05371193,0.0004,4]
[310236386,1704406290866,-3200.0,0.0004,4]
[310236387,1704406290875,-300.0,0.0004,18]
[310236388,1704406290885,-1000.0,0.0004,2]
[310236389,1704406290895,-1249.0,0.0004,7]
[310236390,1704406290905,-5011.77669466,0.0004,4]
[310236391,1704406290914,-22115.23792164,0.0004,10]
[310236392,1704406290924,-9103.0533628,0.0004,2]
[310236393,1704406290934,-8938.60951149,0.0004,2]
[310236394,1704406290943,-300.52933371,0.0004,2]
[310236395,1704406290952,-330.0,0.0004,5]
[310236396,1704406290962,-330.0,0.0004,5]
[310236397,1704406290971,-330.0,0.0004,5]
[310236398,1704406290981,-330.0,0.0004,5]
[310236399,1704406290990,-330.0,0.0004,5]
[310236400,1704406290999,-330.0,0.0004,5]
[310236401,1704406291009,-330.0,0.0004,5]
[310236402,1704406291019,-330.0,0.0004,5]
[310236403,1704406291029,-170.55,0.0004,7]
[310236404,1704406291040,-51069.61283022,0.0004,3]
[310236405,1704406291052,-721.27610393,0.0004,20]
[310236406,1704406291062,-17894.82612602,0.0004,2]
[310236407,1704406291071,-21470.65286544,0.0004,10]
[310236408,1704406291081,-10822.0,0.0004,7]
[310236409,1704406291091,-403.98043754,0.0004,15]
[310236410,1704406291101,-10252.92065761,0.0004,7]
[310236411,1704406291110,-5000.0,0.0004,8]
[310236412,1704406291121,-204705.51107165,0.0004,2]
[310236413,1704406291130,-10000.0,0.0004,7]
[310236414,1704406291139,-10000.0,0.0004,7]
[310236415,1704406291149,-2001.77243382,0.0004,7]
[310236416,1704406291158,-4851.96121861,0.0004,7]
[310236417,1704406291167,-50105.25,0.0004,10]
[310236418,1704406291177,-52977.74,0.0004,10]
[310236419,1704406291186,-1500.0,0.0004,14]
[310236420,1704406291196,-22939.0,0.0004,4]
[310236421,1704406291206,-2005.47299,0.0004,4]
[310236422,1704406291216,-131461.46274324,0.0004,2]
[310236423,1704406291225,-291.48058922,0.0004,4]
[310236424,1704406291235,-200.0088776,0.0004,2]
[310236425,1704406291245,-178.91749629,0.0004,2]
[310236426,1704406291255,-330.0,0.0004,5]
[310236427,1704406291265,-803.0,0.0004,2]
[310236428,1704406291274,-5036.16783664,0.0004,2]
[310236429,1704406291286,-290.01045018,0.0004,2]
[310236430,1704406291295,-5067.0,0.0004,2]
[310236431,1704406291305,-5550.0,0.0004,5]
[310236432,1704406291315,-950.43325371,0.0004,4]
[310236433,1704406291325,-2500.0,0.0004,2]
[310236434,1704406291335,-600.0,0.0004,7]
[310236435,1704406291345,-25111.49386884,0.0004,30]
[310236436,1704406291355,-588.32747825,0.0004,30]
[310236437,1704406291365,-158.00802893,0.0004,30]
[310236438,1704406291375,-582.84724461,0.0004,30]
[310236439,1704406291385,-300.0,0.0004,30]
[310236440,1704406291395,-1000.0,0.0004,11]
[310236441,1704406291404,-300.0,0.0004,30]
[310236442,1704406291414,-899.7621437,0.0004,120]
[310236443,1704406291424,-1005.0,0.0004,5]
[310236444,1704406291433,-3181.07420893,0.0004,30]
[310236445,1704406291443,-300.0,0.0004,41]
[310236446,1704406291453,-477.12749073,0.0004,30]
[310236447,1704406291462,-507.54837097,0.0004,30]
[310236448,1704406291474,-1753.81291179,0.0004,2]
[310236449,1704406291483,-20580.57682942,0.0004,2]
[310236450,1704406291493,-2037.31733034,0.0004,5]
[310236451,1704406291689,-287.7048623,0.0004,5]
[310236452,1704406674333,865.55639907,0.000192,2]
[310236453,1704406702279,414.470261,0.00022422,2]
[310236454,1704406722545,155.0,0.00022422,2]
[310236455,1704406731233,1595.36712932,0.00017938,2]
[310236456,1704406732321,844.46664072,0.00022422,2]
[310236457,1704406736523,155.53958813,0.00022422,2]
[310236458,1704406745226,1600.7415316,0.00017938,2]
[310236459,1704406746380,847.42656863,0.00022422,2]
[310236460,1704406823921,-155.0,0.00022536,2]
[310236461,1704406823942,-150.0,0.00022998,2]
[310236462,1704406823965,-150.0,0.00022998,2]
[310236463,1704406823985,-18948.26672582,0.00022999,2]
[310236465,1704407059046,-160.23160113,0.00024564,2]
[310236466,1704407059068,-579.61035159,0.00024664,2]
[310236467,1704407059088,-278.31410173,0.00024665,2]
[310236468,1704407059108,-530.98245295,0.00024665,2]
[310236469,1704407059129,-1017.4326592,0.00024665,2]
[310236470,1704407059149,-251.99880636,0.00024665,2]
[310236471,1704407059169,-300.0,0.00024999,2]
[310236472,1704407059191,-3032.92310119,0.00025,2]
[310236473,1704407059212,-250.0,0.00027,3]
[310236474,1704407059235,-300.0,0.00029,3]
[310236475,1704407059269,-412.96,0.00029094,2]
[310236476,1704407059290,-2730.61,0.000291,2]
[310236477,1704407059312,-1860.0,0.000291,2]
[310236478,1704407059333,-18891.67020003,0.000291,2]
[310236506,1704407431691,-150.0,0.00028812,2]
[310236508,1704407431701,-1580.15293572,0.00028857,2]
[310236510,1704407431712,-53.23263228,0.00028858,2]
[310236511,1704407431725,-684.58736772,0.00028858,2]
[310236512,1704407431735,-732.0,0.00028859,2]
[310236513,1704407431745,-732.06,0.00028859,2]
[310236514,1704407431754,-723.85,0.00028859,2]
[310236515,1704407431764,-726.93,0.0002886,2]
[310236516,1704407431774,-727.03,0.0002886,2]
[310236517,1704407431784,-392.31,0.00028861,2]
[310236518,1704407431793,-709.88,0.00028894,2]
[310236519,1704407431804,-714.41,0.00028912,2]
[310236520,1704407431816,-731.68,0.00028939,2]
[310236521,1704407431826,-200.0,0.00028955,2]
[310236522,1704407431835,-725.6,0.00028981,2]
[310236523,1704407431846,-318.01504645,0.0002899,2]
[310236524,1704407431857,-733.83,0.00029046,2]
[310236525,1704407431866,-150.99,0.00029046,2]
[310236526,1704407431875,-1338.32979997,0.000291,2]
[310236527,1704407431885,-725.23,0.000291,2]
[310236528,1704407431895,-200.0,0.000291,2]
[310236529,1704407431905,-1767.0,0.000291,2]
[310236530,1704407431915,-150.0,0.0002936,2]
[310236531,1704407431925,-181.11470642,0.00029405,2]
[310236532,1704407431934,-250.0,0.00029531,2]
[310236533,1704407431944,-237.15,0.00029696,2]
[310236534,1704407431953,-9323.79,0.00029778,2]
[310236535,1704407431963,-16141.62387414,0.00029812,2]
[310236536,1704407431983,-7758.37612586,0.00029812,2]
[310236537,1704407431992,-150.0,0.00029908,2]
[310236538,1704407432001,-705.88,0.0003,4]
[310236539,1704407432011,-1133.02,0.00030024,2]
[310236540,1704407432020,-681.38137975,0.00030211,4]
[310236541,1704407432029,-150.0,0.00030456,2]
[310236542,1704407432038,-236.63255181,0.00030472,14]
[310236543,1704407432048,-2000.0,0.00030472,2]
[310236544,1704407432057,-250.0,0.00030472,2]
[310236545,1704407432067,-6693.79362078,0.00030518,2]
[310236546,1704407432080,-1859.50170165,0.00030518,2]
[310236547,1704407432092,-318.01504645,0.00030518,2]
[310236550,1704407432104,-340.325996,0.00030518,2]
[310236552,1704407432115,-1005.0,0.00030518,2]
[310236554,1704407432126,-315.090256,0.00030518,2]
[310236556,1704407432138,-519.6705,0.00030518,2]
[310236558,1704407432149,-17862.03464126,0.00030518,2]
[310236559,1704407432160,-13918.19348722,0.00030518,2]
[310236560,1704407432172,-2447.9745705,0.00030518,2]
[310236561,1704407432183,-391.73008624,0.00030518,2]
[310236562,1704407432195,-26091.97848677,0.00030518,2]
[310236563,1704407432208,-528.87484806,0.00030518,2]
[310236573,1704407437706,-211.0,0.00029833,2]
[310236574,1704407437717,-22613.0631641,0.00030518,2]
[310236575,1704407437873,-23964.94591079,0.00030518,2]
[310236576,1704407437885,-7030.48993734,0.00030518,2]
[310236577,1704407437898,-3507.88530692,0.00030518,2]
[310236578,1704407437908,-303.36,0.00030519,2]
[310236579,1704407437917,-174.83,0.00030667,2]
[310236580,1704407437927,-150.0,0.00030688,2]
[310236581,1704407437937,-158.76,0.00030743,2]
[310236582,1704407437948,-1317.89,0.00030771,2]
[310236583,1704407437957,-400.0,0.0003087,2]
[310236584,1704407437970,-350.0,0.00031,3]
[310236585,1704407437979,-392.31,0.00031125,2]
[310236586,1704407437989,-156.42,0.0003143,2]
[310236587,1704407437998,-600.0,0.00031439,2]
[310236588,1704407438008,-432.25517833,0.00031493,2]
[310236589,1704407438018,-398.45291272,0.00031557,2]
[310236590,1704407438027,-174.83,0.00031646,2]
[310236591,1704407438037,-158.76,0.00032345,2]
[310236592,1704407438046,-2227.2122,0.00032474,2]
[310236593,1704407438056,-246.03986525,0.00032474,6]
[310236594,1704407438065,-9539.53915155,0.00032574,2]
[310236595,1704407438079,-538.48394845,0.00032574,2]
[310236596,1704407438090,-51790.92804808,0.00032574,2]
[310236697,1704407440335,-2244.26729544,0.00032574,2]
[310236714,1704407440419,-45396.74270072,0.00032574,2]
[310236721,1704407440458,-7816.65058857,0.00032574,2]
[310236723,1704407440470,-44626.89875517,0.00032574,2]
[310236805,1704407441251,-50200.23304503,0.00032574,2]
[310236963,1704407442714,-32978.60440163,0.00032574,2]
[310236965,1704407442726,-336.76240707,0.00032574,2]
[310236971,1704407442771,-355.47183999,0.00032574,2]
[310236978,1704407442831,-28782.3444183,0.00032574,2]
[310236980,1704407442840,-288.9937,0.00032574,2]
[310236982,1704407442850,-174.83,0.00032624,2]
[310236984,1704407442859,-153.84,0.00032667,2]
[310236986,1704407442869,-100000.0,0.00032674,2]
[310236988,1704407442878,-42561.2054,0.00032674,2]
[310236990,1704407442888,-1173.5971801,0.00032873,4]
[310236992,1704407442899,-202.52398103,0.00032874,4]
[310236994,1704407442908,-4471.5640939,0.00032874,4]
[310236996,1704407442917,-369.28335865,0.00032874,4]
[310236998,1704407442927,-155.0,0.00032874,4]
[310237000,1704407442936,-244.02773352,0.00032874,4]
[310237002,1704407442946,-155.26544664,0.00032874,4]
[310237004,1704407442955,-160.05593525,0.00032875,4]
[310237006,1704407442965,-18993.86353529,0.00032875,4]
[310237008,1704407442974,-738.39,0.00032876,2]
[310237010,1704407442983,-178.90019114,0.00032876,2]
[310237012,1704407442992,-622.90356237,0.00032876,2]
[310237014,1704407443002,-500.0,0.00032876,2]
[310237016,1704407443010,-596.59301123,0.00032876,2]
[310237018,1704407443019,-500.0,0.00032876,2]
[310237021,1704407443029,-500.0,0.00032876,2]
[310237023,1704407443038,-500.0,0.00032876,2]
[310237025,1704407443047,-500.0,0.00032876,2]
[310237027,1704407443056,-500.0,0.00032876,2]
[310237029,1704407443066,-500.0,0.00032876,2]
[310237031,1704407443075,-278.29205708,0.00032876,2]
[310237033,1704407443085,-500.0,0.00032876,2]
[310237035,1704407443094,-500.0,0.00032876,2]
[310237037,1704407443104,-500.0,0.00032876,2]
[310237039,1704407443113,-500.0,0.00032876,2]
[310237041,1704407443122,-500.0,0.00032876,2]
[310237043,1704407443131,-500.0,0.00032876,2]
[310237045,1704407443141,-588.0,0.00032876,2]
[310237047,1704407443150,-500.0,0.00032876,2]
[310237049,1704407443160,-500.0,0.00032876,2]
[310237051,1704407443169,-195.7557106,0.00032876,2]
[310237053,1704407443178,-500.0,0.00032876,2]
[310237055,1704407443187,-500.0,0.00032876,2]
[310237057,1704407443196,-500.0,0.00032876,2]
[310237059,1704407443206,-529.83,0.00032876,2]
[310237061,1704407443215,-500.0,0.00032876,2]
[310237063,1704407443224,-500.0,0.00032876,2]
[310237065,1704407443234,-500.0,0.00032876,2]
[310237067,1704407443244,-500.0,0.00032876,2]
[310237069,1704407443254,-500.0,0.00032876,2]
[310237071,1704407443263,-500.0,0.00032876,2]
[310237073,1704407443273,-824.89,0.00032876,2]
[310237075,1704407443285,-500.0,0.00032876,2]
[310237078,1704407443296,-500.0,0.00032876,2]
[310237080,1704407443305,-498.58,0.00032876,2]
[310237082,1704407443314,-159.01,0.00032877,15]
[310237084,1704407443324,-400.0,0.00033,3]
[310237086,1704407443333,-166.08,0.00033006,2]
[310237088,1704407443343,-21511.0,0.00033049,2]
[310237090,1704407443352,-1243.45206613,0.00033149,4]
[310237092,1704407443361,-2261.92792,0.0003315,4]
[310237094,1704407443371,-500.0,0.0003315,2]
[310237096,1704407443381,-500.0,0.0003315,2]
[310237098,1704407443390,-500.0,0.0003315,2]
[310237100,1704407443399,-514.26273459,0.0003315,2]
[310237102,1704407443409,-520.8,0.0003315,2]
[310237104,1704407443418,-500.0,0.0003315,2]
[310237106,1704407443428,-208.19,0.0003315,2]
[310237108,1704407443437,-500.0,0.0003315,2]
[310237110,1704407443446,-500.0,0.0003315,2]
[310237112,1704407443455,-305.05,0.0003315,2]
[310237114,1704407443465,-250.41,0.0003315,2]
[310237116,1704407443474,-390.86,0.0003315,2]
[310237118,1704407443483,-500.0,0.0003315,2]
[310237120,1704407443493,-500.0,0.0003315,2]
[310237122,1704407443502,-531.78,0.0003315,2]
[310237124,1704407443511,-500.0,0.0003315,2]
[310237126,1704407443520,-535.2,0.0003315,2]
[310237128,1704407443532,-372.52,0.0003315,2]
[310237130,1704407443541,-500.0,0.0003315,2]
[310237132,1704407443551,-500.0,0.0003315,2]
[310237134,1704407443561,-500.0,0.0003315,2]
[310237136,1704407443570,-500.0,0.0003315,2]
[310237138,1704407443580,-824.89,0.0003315,2]
[310237140,1704407443590,-500.0,0.0003315,2]
[310237142,1704407443601,-392.31,0.00033389,2]
[310237144,1704407443612,-304.98697761,0.00033424,2]
[310237146,1704407443622,-500.0,0.00033424,2]
[310237148,1704407443631,-590.85123767,0.00033424,2]
[310237150,1704407443640,-500.0,0.00033424,2]
[310237152,1704407443650,-500.0,0.00033424,2]
[310237154,1704407443659,-500.0,0.00033424,2]
[310237156,1704407443669,-500.0,0.00033424,2]
[310237158,1704407443678,-330.86,0.00033424,2]
[310237160,1704407443687,-500.0,0.00033424,2]
[310237162,1704407443697,-500.0,0.00033424,2]
[310237164,1704407443708,-262.44,0.00033424,2]
[310237166,1704407443717,-824.89,0.00033424,2]
[310237168,1704407443726,-500.0,0.00033424,2]
[310237171,1704407443736,-174.83,0.00033603,2]
[310237173,1704407443746,-153.84,0.00033657,2]
[310237174,1704407443756,-500.0,0.00033698,2]
[310237176,1704407443767,-500.0,0.00033698,2]
[310237179,1704407443777,-500.0,0.00033698,2]
[310237181,1704407443786,-193.29,0.00033698,2]
[310237183,1704407443796,-500.0,0.00033698,2]
[310237185,1704407443805,-357.62,0.00033698,2]
[310237187,1704407443815,-824.89,0.00033698,2]
[310237188,1704407443824,-500.0,0.00033698,2]
[310237191,1704407443833,-500.0,0.00033972,2]
[310237192,1704407443842,-536.25495903,0.00033972,2]
[310237195,1704407443852,-359.64559717,0.00033972,2]
[310237197,1704407443861,-500.0,0.00033972,2]
[310237199,1704407443870,-824.89,0.00033972,2]
[310237201,1704407443879,-500.0,0.00033972,2]
[310237203,1704407443889,-1000.0,0.00034,4]
[310237205,1704407443898,-1000.0,0.00034,2]
[310237207,1704407443910,-211.0,0.00034143,10]
[310237209,1704407443920,-500.0,0.00034246,2]
[310237211,1704407443930,-500.0,0.00034246,2]
[310237213,1704407443939,-824.89,0.00034246,2]
[310237215,1704407443949,-500.0,0.00034246,2]
[310237217,1704407443958,-500.0,0.0003452,2]
[310237219,1704407443968,-500.0,0.0003452,2]
[310237221,1704407443978,-824.89,0.0003452,2]
[310237223,1704407443988,-500.0,0.0003452,2]
[310237225,1704407443998,-174.83,0.00034581,2]
[310237227,1704407444007,-153.84,0.00034647,2]
[310237229,1704407444016,-180.0,0.00034658,2]
[310237231,1704407444025,-400.0,0.00034728,2]
[310237233,1704407444035,-500.0,0.00034794,2]
[310237235,1704407444044,-439.72,0.00034794,2]
[310237237,1704407444053,-824.89,0.00034794,2]
[310237239,1704407444062,-631.10226824,0.00034794,2]
[310237241,1704407444072,-152.40859416,0.00034997,2]
[310237243,1704407444081,-450.0,0.00035,3]
[310237245,1704407444091,-18957.59309852,0.00035,4]
[310237247,1704407444100,-201.35722068,0.00035,2]
[310237249,1704407444109,-446.78845482,0.00035,4]
[310237251,1704407444119,-617.90544107,0.00035,4]
[310237253,1704407444128,-500.0,0.00035068,2]
[310237255,1704407444138,-824.89,0.00035068,2]
[310237257,1704407444148,-500.0,0.00035342,2]
[310237259,1704407444157,-824.89,0.00035342,2]
[310237261,1704407444166,-600.0,0.00035369,2]
[310237264,1704407444175,-6690.64294002,0.00035531,2]
[310237267,1704407444184,-174.83,0.0003556,2]
[310237269,1704407444193,-167.0,0.00035584,2]
[310237271,1704407444203,-500.0,0.00035616,2]
[310237273,1704407444212,-824.89,0.00035616,2]
[310237275,1704407444221,-150.0,0.00035616,2]
[310237277,1704407444231,-1829.98,0.0003562,2]
[310237279,1704407444240,-153.84,0.00035637,2]
[310237281,1704407444249,-392.31,0.00035652,2]
[310237283,1704407444259,-500.0,0.0003589,2]
[310237285,1704407444268,-824.89,0.0003589,2]
[310237287,1704407444277,-760.92227324,0.00036,4]
[310237289,1704407444287,-500.0,0.00036164,2]
[310237291,1704407444296,-824.89,0.00036164,2]
[310237293,1704407444306,-532.78,0.00036278,2]
[310237295,1704407444316,-19626.0,0.00036278,2]
[310237297,1704407444325,-832.0,0.00036278,2]
[310237299,1704407444335,-197.67,0.00036278,2]
[310237301,1704407444345,-1234.0,0.00036278,2]
[310237302,1704407444354,-1150.24396958,0.00036383,2]
[310237303,1704407444363,-500.0,0.00036438,2]
[310237304,1704407444372,-824.89,0.00036438,2]
[310237305,1704407444381,-34862.85234455,0.00036483,11]
[310237306,1704407444390,-20008.88121193,0.00036483,11]
[310237307,1704407444399,-7709.88223218,0.00036483,11]
[310237308,1704407444408,-4051.72066705,0.00036483,11]
[310237309,1704407444417,-174.83,0.00036538,2]
[310237310,1704407444427,-150.0,0.00036554,2]
[310237312,1704407444436,-153.84,0.00036627,2]
[310237313,1704407444446,-3063.80682954,0.00036657,2]
[310237315,1704407444455,-1000.0,0.000367,2]
[310237317,1704407444465,-398.18643561,0.00036712,2]
[310237319,1704407444474,-824.89,0.00036712,2]
[310237321,1704407444483,-824.89,0.00036986,2]
[310237323,1704407444492,-500.0,0.00037,3]
[310237325,1704407444501,-308.92091342,0.00037,4]
[310237327,1704407444510,-28570.43688583,0.00037,21]
[310237329,1704407444521,-809.29907843,0.0003724,4]
[310237331,1704407444532,-824.89,0.0003726,2]
[310237333,1704407444542,-150.0,0.00037491,2]
[310237335,1704407444551,-174.83,0.00037516,2]
[310237337,1704407444560,-824.89,0.00037534,2]
[310237339,1704407444569,-167.0,0.00037542,2]
[310237341,1704407444578,-153.84,0.00037617,2]
[310237343,1704407444588,-1009.18964948,0.00037751,3]
[310237345,1704407444598,-5000.0,0.00037769,3]
[310237347,1704407444607,-824.89,0.00037808,2]
[310237349,1704407444616,-392.31,0.00037916,2]